[Event "*** Titled Tuesday Blitz"]
[Site "Chess.com"]
[Date "2021.02.02"]
[Round "8"]
[White "HristosBanikas"]
[Black "Tartody"]
[Result "1/2-1/2"]
[WhiteElo "2815"]
[BlackElo "2652"]
[TimeControl "180+1"]
[EndTime "11:31:12 PST"]
[Termination "Game drawn by repetition"]

1. d4 {[%clk 0:03:00.9]} 1... e6 {[%clk 0:02:59.9]} 2. Nf3 {[%clk 0:02:58.2]}
2... d6 {[%clk 0:02:56.4]} 3. e4 {[%clk 0:02:57.3]} 3... h6 {[%clk 0:02:56.3]}
4. c4 {[%clk 0:02:56.7]} 4... g5 {[%clk 0:02:55.2]} 5. Nc3 {[%clk 0:02:56.8]}
5... Bg7 {[%clk 0:02:55.1]} 6. Be3 {[%clk 0:02:56.8]} 6... Ne7 {[%clk
0:02:54.3]} 7. h4 {[%clk 0:02:51.4]} 7... g4 {[%clk 0:02:54.3]} 8. Nd2 {[%clk
0:02:51.6]} 8... h5 {[%clk 0:02:51.5]} 9. Nb3 {[%clk 0:02:48.7]} 9... b6 {[%clk
0:02:51.1]} 10. Be2 {[%clk 0:02:47.4]} 10... Bb7 {[%clk 0:02:50.4]} 11. f3
{[%clk 0:02:47.3]} 11... f5 {[%clk 0:02:44.5]} 12. Qd2 {[%clk 0:02:41.4]} 12...
c5 {[%clk 0:02:11.9]} 13. dxc5 {[%clk 0:02:29.3]} 13... dxc5 {[%clk 0:02:12.8]}
14. Qxd8+ {[%clk 0:02:28.1]} 14... Kxd8 {[%clk 0:02:13.7]} 15. O-O-O+ {[%clk
0:02:28.5]} 15... Kc8 {[%clk 0:02:01.5]} 16. Nb5 {[%clk 0:02:27.2]} 16... Nbc6
{[%clk 0:01:51.7]} 17. Nd6+ {[%clk 0:02:23.1]} 17... Kc7 {[%clk 0:01:51.9]} 18.
exf5 {[%clk 0:02:06.1]} 18... Nxf5 {[%clk 0:01:43.3]} 19. Bf4 {[%clk 0:02:06.2]}
19... Be5 {[%clk 0:01:31.4]} 20. Bxe5 {[%clk 0:01:57.7]} 20... Nxe5 {[%clk
0:01:32.3]} 21. Nxf5 {[%clk 0:01:37.2]} 21... exf5 {[%clk 0:01:32.1]} 22. Rhe1
{[%clk 0:01:37]} 22... Rhe8 {[%clk 0:01:23.9]} 23. f4 {[%clk 0:01:37]} 23... Nc6
{[%clk 0:01:14.8]} 24. g3 {[%clk 0:01:37.1]} 24... Re3 {[%clk 0:01:13.3]} 25.
Rd3 {[%clk 0:01:32.3]} 25... Rae8 {[%clk 0:01:13.4]} 26. Kd2 {[%clk 0:01:30.2]}
26... R3e7 {[%clk 0:01:03.7]} 27. a3 {[%clk 0:01:30.2]} 27... Nd4 {[%clk
0:00:59.5]} 28. Nxd4 {[%clk 0:01:28]} 28... cxd4 {[%clk 0:01:00.4]} 29. Rxd4
{[%clk 0:01:15.7]} 29... Bf3 {[%clk 0:01:00.1]} 30. Bxf3 {[%clk 0:01:16]} 30...
Rxe1 {[%clk 0:01:00.8]} 31. Bd5 {[%clk 0:01:16.8]} 31... R8e2+ {[%clk
0:00:56.2]} 32. Kc3 {[%clk 0:01:16.2]} 32... Re3+ {[%clk 0:00:55.6]} 33. Kb4
{[%clk 0:01:14.8]} 33... Rxg3 {[%clk 0:00:46.1]} 34. Bf7 {[%clk 0:01:14.9]}
34... Re2 {[%clk 0:00:37.3]} 35. b3 {[%clk 0:01:14]} 35... Rb2 {[%clk
0:00:35.6]} 36. c5 {[%clk 0:01:13.7]} 36... Rc2 {[%clk 0:00:20.8]} 37. Bc4
{[%clk 0:01:11.2]} 37... Rgc3 {[%clk 0:00:14.4]} 38. Rd5 {[%clk 0:01:05.8]}
38... g3 {[%clk 0:00:14.1]} 39. Rxf5 {[%clk 0:01:05]} 39... bxc5+ {[%clk
0:00:07.2]} 40. Kxc5 {[%clk 0:01:05]} 40... Rc1 {[%clk 0:00:08.1]} 41. Rf7+
{[%clk 0:01:04.5]} 41... Kd8 {[%clk 0:00:08.2]} 42. Rf8+ {[%clk 0:01:03.8]}
42... Ke7 {[%clk 0:00:08]} 43. Rf7+ {[%clk 0:01:04.4]} 43... Ke8 {[%clk
0:00:08.4]} 44. Rg7 {[%clk 0:01:03.3]} 44... Kf8 {[%clk 0:00:08.6]} 45. Rg8+
{[%clk 0:01:03.2]} 45... Ke7 {[%clk 0:00:09]} 46. Kd4 {[%clk 0:01:00.2]} 46...
Rf3 {[%clk 0:00:05.7]} 47. Ke4 {[%clk 0:00:56.5]} 47... Rcc3 {[%clk 0:00:05.3]}
48. Ke5 {[%clk 0:00:54.6]} 48... Rfe3+ {[%clk 0:00:04.9]} 49. Kd4 {[%clk
0:00:54.4]} 49... Rf3 {[%clk 0:00:04.5]} 50. Ke5 {[%clk 0:00:49.9]} 50... Rce3+
{[%clk 0:00:04.7]} 51. Kf5 {[%clk 0:00:50.3]} 51... Rf2 {[%clk 0:00:04.1]} 52.
Rg7+ {[%clk 0:00:49.1]} 52... Kd6 {[%clk 0:00:04.4]} 53. Rg6+ {[%clk 0:00:45.5]}
53... Kc5 {[%clk 0:00:04.8]} 54. Rg5 {[%clk 0:00:45.8]} 54... g2 {[%clk
0:00:03.9]} 55. Kg6+ {[%clk 0:00:46.2]} 55... Kd4 {[%clk 0:00:04.1]} 56. Bd5
{[%clk 0:00:45.3]} 56... Ree2 {[%clk 0:00:02.7]} 57. Bc6 {[%clk 0:00:44.1]}
57... Rc2 {[%clk 0:00:01.6]} 58. Ba8 {[%clk 0:00:42.1]} 58... Ke3 {[%clk
0:00:02.5]} 59. f5 {[%clk 0:00:42]} 59... Ke2 {[%clk 0:00:01.7]} 60. f6 {[%clk
0:00:42.1]} 60... Kf1 {[%clk 0:00:01.8]} 61. Bxg2+ {[%clk 0:00:41]} 61... Rxg2
{[%clk 0:00:01.9]} 62. Kxh5 {[%clk 0:00:41.9]} 62... Rgf2 {[%clk 0:00:01.8]} 63.
Kg6 {[%clk 0:00:42.3]} 63... Rc6 {[%clk 0:00:01.5]} 64. Rf5 {[%clk 0:00:42.7]}
64... Rxf5 {[%clk 0:00:02.1]} 65. Kxf5 {[%clk 0:00:43.6]} 65... Rc5+ {[%clk
0:00:02.6]} 66. Ke6 {[%clk 0:00:43.8]} 66... Rc3 {[%clk 0:00:03.1]} 67. f7
{[%clk 0:00:43.9]} 67... Re3+ {[%clk 0:00:03.8]} 68. Kd6 {[%clk 0:00:42.4]}
68... Rf3 {[%clk 0:00:04.2]} 69. Ke7 {[%clk 0:00:42.5]} 69... Re3+ {[%clk
0:00:04.9]} 70. Kf6 {[%clk 0:00:43]} 70... Rf3+ {[%clk 0:00:05.3]} 71. Kg7
{[%clk 0:00:43.6]} 71... Rg3+ {[%clk 0:00:05.9]} 72. Kh7 {[%clk 0:00:43.9]}
72... Rf3 {[%clk 0:00:06.2]} 73. Kg6 {[%clk 0:00:41.8]} 73... Rg3+ {[%clk
0:00:06.7]} 74. Kf6 {[%clk 0:00:38]} 74... Rf3+ {[%clk 0:00:07.3]} 75. Ke6
{[%clk 0:00:31.9]} 75... Re3+ {[%clk 0:00:07.8]} 76. Kd6 {[%clk 0:00:32.3]}
76... Rf3 {[%clk 0:00:07.6]} 77. Ke7 {[%clk 0:00:31.7]} 77... Re3+ {[%clk
0:00:08.1]} 78. Kf6 {[%clk 0:00:31.8]} 78... Rf3+ {[%clk 0:00:08.5]} 1/2-1/2

[Event "*** Titled Tuesday Blitz"]
[Site "Chess.com"]
[Date "2021.02.02"]
[Round "8"]
[White "Murad_Ibrahimli"]
[Black "Katheksis"]
[Result "0-1"]
[WhiteElo "2809"]
[BlackElo "2533"]
[TimeControl "180+1"]
[EndTime "11:31:12 PST"]
[Termination "Katheksis won by resignation"]

1. c4 {[%clk 0:03:00.9]} 1... f5 {[%clk 0:02:59.8]} 2. Nc3 {[%clk 0:03:01]} 2...
Nf6 {[%clk 0:02:59.1]} 3. g3 {[%clk 0:03:01.5]} 3... g6 {[%clk 0:02:59]} 4. Bg2
{[%clk 0:03:02]} 4... Bg7 {[%clk 0:02:59.4]} 5. d4 {[%clk 0:03:02.4]} 5... O-O
{[%clk 0:02:57.9]} 6. Nf3 {[%clk 0:03:02.9]} 6... d6 {[%clk 0:02:58]} 7. O-O
{[%clk 0:03:03.4]} 7... Qe8 {[%clk 0:02:58.5]} 8. b3 {[%clk 0:03:02.6]} 8... e5
{[%clk 0:02:58.2]} 9. dxe5 {[%clk 0:03:02.5]} 9... dxe5 {[%clk 0:02:59.1]} 10.
Ba3 {[%clk 0:03:02.5]} 10... Rf7 {[%clk 0:02:52.7]} 11. e4 {[%clk 0:02:50.5]}
11... Nc6 {[%clk 0:02:50]} 12. exf5 {[%clk 0:02:30]} 12... Bxf5 {[%clk
0:02:50.9]} 13. Nd5 {[%clk 0:02:26.3]} 13... Rd8 {[%clk 0:02:47.1]} 14. Ng5
{[%clk 0:02:11.8]} 14... Rfd7 {[%clk 0:02:34.3]} 15. Qe1 {[%clk 0:02:01.6]}
15... Nd4 {[%clk 0:02:13.8]} 16. Nxf6+ {[%clk 0:01:59.1]} 16... Bxf6 {[%clk
0:02:14.7]} 17. Ne4 {[%clk 0:01:59.3]} 17... Bg7 {[%clk 0:01:59.3]} 18. Rc1
{[%clk 0:01:54.4]} 18... b6 {[%clk 0:01:54.5]} 19. h4 {[%clk 0:01:48.9]} 19...
h6 {[%clk 0:01:42.8]} 20. Qe3 {[%clk 0:01:46.8]} 20... Qe6 {[%clk 0:01:41.2]}
21. c5 {[%clk 0:01:33.5]} 21... Bh3 {[%clk 0:01:38.4]} 22. cxb6 {[%clk
0:01:30.8]} 22... axb6 {[%clk 0:01:33.3]} 23. Kh2 {[%clk 0:01:19.1]} 23... Bxg2
{[%clk 0:01:31.5]} 24. Kxg2 {[%clk 0:01:19.5]} 24... c5 {[%clk 0:01:26.8]} 25.
Bb2 {[%clk 0:01:17.5]} 25... Rf7 {[%clk 0:01:18.7]} 26. f3 {[%clk 0:01:10.5]}
26... Rdf8 {[%clk 0:01:11]} 27. Bxd4 {[%clk 0:01:04.2]} 27... exd4 {[%clk
0:01:11.9]} 28. Qd3 {[%clk 0:01:04.5]} 28... Qd5 {[%clk 0:01:02.4]} 29. Rf2
{[%clk 0:01:03.1]} 29... Be5 {[%clk 0:00:54.5]} 30. Nd2 {[%clk 0:00:55.2]} 30...
Kg7 {[%clk 0:00:52]} 31. Re1 {[%clk 0:00:55.3]} 31... Bc7 {[%clk 0:00:46.6]} 32.
Re4 {[%clk 0:00:55.2]} 32... h5 {[%clk 0:00:36.4]} 33. Kh2 {[%clk 0:00:49.8]}
33... Qd6 {[%clk 0:00:34.7]} 34. f4 {[%clk 0:00:49.5]} 34... Re7 {[%clk
0:00:32.9]} 35. Rfe2 {[%clk 0:00:48.8]} 35... Rfe8 {[%clk 0:00:32.4]} 36. a4
{[%clk 0:00:40.8]} 36... Rxe4 {[%clk 0:00:29.6]} 37. Rxe4 {[%clk 0:00:41.2]}
37... Rxe4 {[%clk 0:00:26.8]} 38. Qxe4 {[%clk 0:00:41.3]} 38... d3 {[%clk
0:00:23.8]} 39. Kg2 {[%clk 0:00:41.3]} 39... Bd8 {[%clk 0:00:19.2]} 40. Qb7+
{[%clk 0:00:35.3]} 40... Kh6 {[%clk 0:00:18.7]} 41. Qf7 {[%clk 0:00:33.7]} 41...
Bf6 {[%clk 0:00:18.7]} 42. Qe8 {[%clk 0:00:16.9]} 42... Bc3 {[%clk 0:00:16.3]}
43. Ne4 {[%clk 0:00:12.6]} 43... Qd5 {[%clk 0:00:16.7]} 44. Kf1 {[%clk
0:00:11.1]} 44... Bg7 {[%clk 0:00:14.6]} 45. Ke1 {[%clk 0:00:09.2]} 45... Qd4
{[%clk 0:00:13.6]} 46. Kd2 {[%clk 0:00:05.7]} 46... Qb2+ {[%clk 0:00:13.4]} 47.
Kxd3 {[%clk 0:00:06.2]} 47... Qxb3+ {[%clk 0:00:14.3]} 48. Ke2 {[%clk
0:00:06.7]} 48... Qd5 {[%clk 0:00:13.3]} 49. Kf3 {[%clk 0:00:06.8]} 49... c4
{[%clk 0:00:13.9]} 50. Kg2 {[%clk 0:00:06.9]} 50... c3 {[%clk 0:00:14.8]} 51.
Kh2 {[%clk 0:00:07.1]} 51... c2 {[%clk 0:00:15.5]} 52. Ng5 {[%clk 0:00:05.1]}
52... c1=Q {[%clk 0:00:14.7]} 53. Nf7+ {[%clk 0:00:05.6]} 53... Qxf7 {[%clk
0:00:15.4]} 54. Qxf7 {[%clk 0:00:06.1]} 54... Qc2+ {[%clk 0:00:16.1]} 55. Kh3
{[%clk 0:00:06.3]} 55... Qf5+ {[%clk 0:00:17]} 56. Qxf5 {[%clk 0:00:06.5]} 56...
gxf5 {[%clk 0:00:17.9]} 57. Kg2 {[%clk 0:00:07.4]} 57... Kg6 {[%clk 0:00:18.4]}
58. Kf3 {[%clk 0:00:08.3]} 58... Bd4 {[%clk 0:00:17.8]} 59. Ke2 {[%clk
0:00:08.4]} 59... Kf6 {[%clk 0:00:18.4]} 60. Kd3 {[%clk 0:00:09.3]} 60... Bc5
{[%clk 0:00:18.7]} 61. Kc4 {[%clk 0:00:10.2]} 61... Bf2 {[%clk 0:00:18.5]} 62.
Kb5 {[%clk 0:00:10.1]} 62... Ke6 {[%clk 0:00:18.9]} 63. Kc6 {[%clk 0:00:08.8]}
63... Bxg3 {[%clk 0:00:17.3]} 64. Kxb6 {[%clk 0:00:08.5]} 64... Bxf4 {[%clk
0:00:17.9]} 65. a5 {[%clk 0:00:09.4]} 65... Be3+ {[%clk 0:00:18.1]} 66. Kb5
{[%clk 0:00:09.2]} 66... f4 {[%clk 0:00:18.7]} 67. Kc4 {[%clk 0:00:09.8]} 67...
Kf5 {[%clk 0:00:19.3]} 68. Kd3 {[%clk 0:00:10.7]} 68... Kg4 {[%clk 0:00:19.9]}
69. Ke4 {[%clk 0:00:10.3]} 69... Ba7 {[%clk 0:00:20.5]} 70. a6 {[%clk
0:00:11.1]} 70... f3 {[%clk 0:00:20.9]} 0-1

[Event "*** Titled Tuesday Blitz"]
[Site "Chess.com"]
[Date "2021.02.02"]
[Round "8"]
[White "chegueps"]
[Black "PerAsperaAdAstraCB"]
[Result "1/2-1/2"]
[WhiteElo "2491"]
[BlackElo "2357"]
[TimeControl "180+1"]
[EndTime "11:31:17 PST"]
[Termination "Game drawn - insufficient material"]

1. e4 {[%clk 0:03:00.9]} 1... c6 {[%clk 0:02:59.9]} 2. d4 {[%clk 0:03:00.4]}
2... d5 {[%clk 0:03:00.2]} 3. Nc3 {[%clk 0:03:00.8]} 3... dxe4 {[%clk
0:03:00.3]} 4. Nxe4 {[%clk 0:03:01.7]} 4... Nf6 {[%clk 0:03:00.9]} 5. Nxf6+
{[%clk 0:03:01.4]} 5... exf6 {[%clk 0:03:01.8]} 6. c3 {[%clk 0:03:01.7]} 6...
Bd6 {[%clk 0:03:02.2]} 7. Bd3 {[%clk 0:03:02.1]} 7... O-O {[%clk 0:03:02.7]} 8.
Ne2 {[%clk 0:03:02.6]} 8... Re8 {[%clk 0:03:03.3]} 9. O-O {[%clk 0:03:00.2]}
9... Nd7 {[%clk 0:03:02.5]} 10. Bf4 {[%clk 0:02:59.4]} 10... Nf8 {[%clk
0:03:02]} 11. Bxd6 {[%clk 0:02:59.2]} 11... Qxd6 {[%clk 0:03:02.9]} 12. Ng3
{[%clk 0:02:59.6]} 12... g6 {[%clk 0:03:01.5]} 13. Ne4 {[%clk 0:02:55.6]} 13...
Qd8 {[%clk 0:03:01.2]} 14. Qf3 {[%clk 0:02:56.1]} 14... Kg7 {[%clk 0:03:01.3]}
15. Rfe1 {[%clk 0:02:48.7]} 15... f5 {[%clk 0:03:01.5]} 16. Nc5 {[%clk
0:02:42.2]} 16... Ne6 {[%clk 0:03:01.7]} 17. Nb3 {[%clk 0:02:24.2]} 17... Nc7
{[%clk 0:02:50.6]} 18. Qg3 {[%clk 0:02:16]} 18... Be6 {[%clk 0:02:43.4]} 19. Nd2
{[%clk 0:02:15.4]} 19... Nd5 {[%clk 0:02:35.9]} 20. Nc4 {[%clk 0:02:00.2]} 20...
Nf6 {[%clk 0:02:26.7]} 21. Nd6 {[%clk 0:01:54.2]} 21... Re7 {[%clk 0:02:25.9]}
22. Qe5 {[%clk 0:01:50.6]} 22... Rd7 {[%clk 0:02:21.1]} 23. Nc4 {[%clk
0:01:42.9]} 23... Qc7 {[%clk 0:02:13.3]} 24. Rad1 {[%clk 0:01:41.7]} 24... Rad8
{[%clk 0:02:11.7]} 25. Qxc7 {[%clk 0:01:38.3]} 25... Rxc7 {[%clk 0:02:11.8]} 26.
Ne5 {[%clk 0:01:36.1]} 26... c5 {[%clk 0:01:59]} 27. dxc5 {[%clk 0:01:35.7]}
27... Rxc5 {[%clk 0:01:59.9]} 28. f4 {[%clk 0:01:26.5]} 28... a6 {[%clk
0:01:56.4]} 29. a3 {[%clk 0:01:25.7]} 29... Nd5 {[%clk 0:01:54.2]} 30. g3 {[%clk
0:01:23.6]} 30... Nb6 {[%clk 0:01:54.1]} 31. Bb1 {[%clk 0:01:14.9]} 31... Rcd5
{[%clk 0:01:49.6]} 32. Rxd5 {[%clk 0:01:07.6]} 32... Rxd5 {[%clk 0:01:50.5]} 33.
Kf2 {[%clk 0:01:06.7]} 33... Rd2+ {[%clk 0:01:35.4]} 34. Re2 {[%clk 0:01:05.6]}
34... Rxe2+ {[%clk 0:01:35.9]} 35. Kxe2 {[%clk 0:01:05.6]} 35... Na4 {[%clk
0:01:36.8]} 36. Nd3 {[%clk 0:00:29.9]} 36... Bc4 {[%clk 0:01:36.2]} 37. Kd2
{[%clk 0:00:25.6]} 37... Bxd3 {[%clk 0:01:34.3]} 38. Kxd3 {[%clk 0:00:20.5]}
38... Nxb2+ {[%clk 0:01:32.2]} 39. Kd4 {[%clk 0:00:21]} 39... Kf6 {[%clk
0:01:25.8]} 40. Kc5 {[%clk 0:00:19.7]} 40... Na4+ {[%clk 0:01:24.9]} 41. Kb4
{[%clk 0:00:19.1]} 41... Nb6 {[%clk 0:01:21.9]} 42. Kc5 {[%clk 0:00:18.2]} 42...
Nc8 {[%clk 0:01:21.6]} 43. Ba2 {[%clk 0:00:17]} 43... Ke7 {[%clk 0:01:21.4]} 44.
Bd5 {[%clk 0:00:16.8]} 44... b6+ {[%clk 0:01:09.9]} 45. Kc6 {[%clk 0:00:17.7]}
45... f6 {[%clk 0:00:45.7]} 46. Kb7 {[%clk 0:00:14.8]} 46... Kd6 {[%clk
0:00:39.9]} 47. Bg8 {[%clk 0:00:12]} 47... Ne7 {[%clk 0:00:39.4]} 48. Bxh7
{[%clk 0:00:09.1]} 48... Kc5 {[%clk 0:00:39]} 49. Kxa6 {[%clk 0:00:06.3]} 49...
b5 {[%clk 0:00:39.1]} 50. Ka5 {[%clk 0:00:04.3]} 50... Kc4 {[%clk 0:00:39.3]}
51. Kb6 {[%clk 0:00:04.1]} 51... g5 {[%clk 0:00:36.4]} 52. fxg5 {[%clk
0:00:03.6]} 52... fxg5 {[%clk 0:00:37.3]} 53. h4 {[%clk 0:00:04]} 53... f4
{[%clk 0:00:34]} 54. hxg5 {[%clk 0:00:04.1]} 54... fxg3 {[%clk 0:00:34.1]} 55.
Be4 {[%clk 0:00:04.6]} 55... Kxc3 {[%clk 0:00:32.2]} 56. Kxb5 {[%clk 0:00:03.8]}
56... Kd4 {[%clk 0:00:31.7]} 57. Bg2 {[%clk 0:00:03.3]} 57... Ke5 {[%clk
0:00:30.3]} 58. a4 {[%clk 0:00:03.7]} 58... Kf5 {[%clk 0:00:29.5]} 59. a5 {[%clk
0:00:04.1]} 59... Kxg5 {[%clk 0:00:28.5]} 60. a6 {[%clk 0:00:04.5]} 60... Nc8
{[%clk 0:00:28.6]} 61. Bh3 {[%clk 0:00:04]} 61... Kf4 {[%clk 0:00:28.4]} 62. Bg2
{[%clk 0:00:04]} 62... Ke3 {[%clk 0:00:28.6]} 63. Kc6 {[%clk 0:00:03.8]} 63...
Kf2 {[%clk 0:00:28.4]} 64. Bd5 {[%clk 0:00:03.6]} 64... Ke3 {[%clk 0:00:28.4]}
65. Kb7 {[%clk 0:00:02.7]} 65... Nd6+ {[%clk 0:00:28.7]} 66. Kc6 {[%clk
0:00:02.6]} 66... Nc8 {[%clk 0:00:28.8]} 67. Kc7 {[%clk 0:00:03]} 67... Na7
{[%clk 0:00:28.6]} 68. Kb7 {[%clk 0:00:03.9]} 68... Nb5 {[%clk 0:00:28.8]} 69.
Bc6 {[%clk 0:00:04.2]} 69... Kd4 {[%clk 0:00:28.2]} 70. Kb6 {[%clk 0:00:04.4]}
70... Nd6 {[%clk 0:00:27.1]} 71. Kc7 {[%clk 0:00:04.1]} 71... Nb5+ {[%clk
0:00:26.3]} 72. Kb6 {[%clk 0:00:02.1]} 72... Nd6 {[%clk 0:00:26.5]} 73. Bg2
{[%clk 0:00:03]} 73... Ke3 {[%clk 0:00:23.4]} 74. a7 {[%clk 0:00:02.9]} 74...
Nc8+ {[%clk 0:00:23.2]} 75. Kb7 {[%clk 0:00:03.8]} 75... Nxa7 {[%clk 0:00:24.1]}
76. Kxa7 {[%clk 0:00:04.6]} 76... Kf2 {[%clk 0:00:25]} 77. Bd5 {[%clk
0:00:04.7]} 77... g2 {[%clk 0:00:25.9]} 78. Bxg2 {[%clk 0:00:04.8]} 1/2-1/2

[Event "*** Titled Tuesday Blitz"]
[Site "Chess.com"]
[Date "2021.02.02"]
[Round "8"]
[White "Papullon"]
[Black "tylityli"]
[Result "1/2-1/2"]
[WhiteElo "2134"]
[BlackElo "2303"]
[TimeControl "180+1"]
[EndTime "11:31:22 PST"]
[Termination "Game drawn - timeout vs insufficient material"]

1. d4 {[%clk 0:03:00.9]} 1... Nf6 {[%clk 0:02:55.2]} 2. Bg5 {[%clk 0:03:00.2]}
2... Ne4 {[%clk 0:02:54.4]} 3. Bh4 {[%clk 0:03:00]} 3... d5 {[%clk 0:02:52.7]}
4. f3 {[%clk 0:02:59.8]} 4... g5 {[%clk 0:02:52]} 5. fxe4 {[%clk 0:02:58.7]}
5... gxh4 {[%clk 0:02:52.2]} 6. exd5 {[%clk 0:02:58.7]} 6... Qxd5 {[%clk
0:02:49.1]} 7. Nc3 {[%clk 0:02:58.2]} 7... Qh5 {[%clk 0:02:49.1]} 8. e4 {[%clk
0:02:56.7]} 8... Qxd1+ {[%clk 0:02:41.8]} 9. Rxd1 {[%clk 0:02:55.8]} 9... Bg4
{[%clk 0:02:40.9]} 10. Be2 {[%clk 0:02:54.5]} 10... Bxe2 {[%clk 0:02:34.9]} 11.
Ngxe2 {[%clk 0:02:54.3]} 11... Nc6 {[%clk 0:02:28.8]} 12. Nb5 {[%clk 0:02:46.1]}
12... O-O-O {[%clk 0:02:26.5]} 13. d5 {[%clk 0:02:40.6]} 13... Nb4 {[%clk
0:02:26]} 14. c3 {[%clk 0:02:35.5]} 14... Na6 {[%clk 0:02:21.2]} 15. Nxa7+
{[%clk 0:02:34.5]} 15... Kb8 {[%clk 0:02:21.9]} 16. Nb5 {[%clk 0:02:34.4]} 16...
Rg8 {[%clk 0:02:18]} 17. O-O {[%clk 0:02:31.3]} 17... f6 {[%clk 0:02:11.4]} 18.
b4 {[%clk 0:02:29.2]} 18... Bh6 {[%clk 0:02:10.1]} 19. Nf4 {[%clk 0:02:18.3]}
19... c6 {[%clk 0:02:02.3]} 20. Nd4 {[%clk 0:01:54.9]} 20... Bxf4 {[%clk
0:01:54.3]} 21. Rxf4 {[%clk 0:01:52.6]} 21... cxd5 {[%clk 0:01:54.1]} 22. exd5
{[%clk 0:01:48.8]} 22... Rxd5 {[%clk 0:01:52.5]} 23. c4 {[%clk 0:01:26.8]} 23...
Rdg5 {[%clk 0:01:49.2]} 24. Rf2 {[%clk 0:01:18.5]} 24... Nxb4 {[%clk 0:01:41.9]}
25. Ne6 {[%clk 0:01:09.7]} 25... Re5 {[%clk 0:01:35.6]} 26. Nf4 {[%clk
0:01:06.6]} 26... Rc8 {[%clk 0:01:29.7]} 27. a3 {[%clk 0:01:02.4]} 27... Na6
{[%clk 0:01:26.5]} 28. Nd5 {[%clk 0:01:00.6]} 28... Rxc4 {[%clk 0:01:23.3]} 29.
Nb6 {[%clk 0:01:00.6]} 29... Rce4 {[%clk 0:01:06.7]} 30. Nd7+ {[%clk 0:00:58]}
30... Kc7 {[%clk 0:01:06.9]} 31. Rc2+ {[%clk 0:00:49.6]} 31... Nc5 {[%clk
0:00:59.9]} 32. Rxc5+ {[%clk 0:00:48.1]} 32... Rxc5 {[%clk 0:00:59.5]} 33. Nxc5
{[%clk 0:00:47.7]} 33... Rc4 {[%clk 0:00:58.3]} 34. Nd3 {[%clk 0:00:44.1]} 34...
Ra4 {[%clk 0:00:53.9]} 35. Rc1+ {[%clk 0:00:42.9]} 35... Kd6 {[%clk 0:00:42.4]}
36. Rc3 {[%clk 0:00:42.7]} 36... b5 {[%clk 0:00:36]} 37. h3 {[%clk 0:00:40.6]}
37... e5 {[%clk 0:00:35.6]} 38. Kf2 {[%clk 0:00:39.8]} 38... Kd5 {[%clk
0:00:34.7]} 39. Nb4+ {[%clk 0:00:37.7]} 39... Ke4 {[%clk 0:00:31.7]} 40. Ke2
{[%clk 0:00:34.8]} 40... f5 {[%clk 0:00:27.9]} 41. Kd2 {[%clk 0:00:34]} 41... f4
{[%clk 0:00:27.2]} 42. Kc2 {[%clk 0:00:33.3]} 42... Ra8 {[%clk 0:00:24.9]} 43.
Nd3 {[%clk 0:00:30.7]} 43... Rg8 {[%clk 0:00:19.2]} 44. Nf2+ {[%clk 0:00:23.1]}
44... Kf5 {[%clk 0:00:14.8]} 45. Ng4 {[%clk 0:00:11.2]} 45... h5 {[%clk
0:00:13.4]} 46. Nh6+ {[%clk 0:00:10.9]} 46... Ke4 {[%clk 0:00:13.7]} 47. Nxg8
{[%clk 0:00:10.6]} 47... Kd4 {[%clk 0:00:13.9]} 48. Nf6 {[%clk 0:00:10.2]} 48...
e4 {[%clk 0:00:13.6]} 49. Nxe4 {[%clk 0:00:09.4]} 49... Kxe4 {[%clk 0:00:13]}
50. Kd2 {[%clk 0:00:08.4]} 50... Kd4 {[%clk 0:00:13]} 51. Rc8 {[%clk 0:00:07.5]}
51... Ke4 {[%clk 0:00:13]} 52. Ke2 {[%clk 0:00:07.7]} 52... Kd4 {[%clk
0:00:12.7]} 53. Kf2 {[%clk 0:00:07.6]} 53... Ke4 {[%clk 0:00:12.9]} 54. Rc5
{[%clk 0:00:07.4]} 54... Kd4 {[%clk 0:00:11.2]} 55. Rxb5 {[%clk 0:00:07.6]}
55... Kc4 {[%clk 0:00:11.8]} 56. Rxh5 {[%clk 0:00:05.8]} 56... Kb3 {[%clk
0:00:12]} 57. Kf3 {[%clk 0:00:05.8]} 57... Kxa3 {[%clk 0:00:12.9]} 58. Kxf4
{[%clk 0:00:06.1]} 58... Kb4 {[%clk 0:00:13.8]} 59. Rxh4 {[%clk 0:00:06.3]}
59... Kc4 {[%clk 0:00:14.7]} 60. Rh5 {[%clk 0:00:06.6]} 60... Kd4 {[%clk
0:00:15.6]} 61. Rg5 {[%clk 0:00:06.7]} 61... Kd3 {[%clk 0:00:15.1]} 62. h4
{[%clk 0:00:07.2]} 62... Ke2 {[%clk 0:00:16]} 63. h5 {[%clk 0:00:07.1]} 63...
Kf2 {[%clk 0:00:16.5]} 64. h6 {[%clk 0:00:07.5]} 64... Ke2 {[%clk 0:00:17.4]}
65. h7 {[%clk 0:00:07.7]} 65... Kd3 {[%clk 0:00:18.3]} 66. h8=Q {[%clk
0:00:07.6]} 66... Ke2 {[%clk 0:00:15.7]} 67. Qe5+ {[%clk 0:00:07.3]} 67... Kf1
{[%clk 0:00:15.5]} 68. Rg8 {[%clk 0:00:04.9]} 68... Kg1 {[%clk 0:00:15.3]} 69.
Ra8 {[%clk 0:00:04.6]} 69... Kh2 {[%clk 0:00:15.1]} 70. Ra2 {[%clk 0:00:04.2]}
70... Kh1 {[%clk 0:00:14.3]} 71. Qe1+ {[%clk 0:00:03.5]} 71... Kh2 {[%clk
0:00:14.1]} 72. Qh4+ {[%clk 0:00:03.1]} 72... Kg1 {[%clk 0:00:14.1]} 1/2-1/2